fUSD/lending_fUSD_20260217
["ID","MTS","AMOUNT","RATE_DAILY","PERIOD"]
[405853806,1771362649631,-1066.36814864,0.00017546,2]
[405853807,1771362649641,-1000.0,0.00017552,2]
[405853808,1771362649650,-1000.0,0.00017556,2]
[405853809,1771362649660,-807.0,0.00017563,2]
[405853810,1771362649669,-151.0,0.00017577,2]
[405853811,1771362649679,-961.58486559,0.00017577,2]
[405853812,1771362649689,-5013.89,0.00017581,2]
[405853813,1771362649698,-484.171,0.00017581,2]
[405853814,1771362649708,-1000.0,0.00017589,2]
[405853815,1771362649717,-1226.14807661,0.00017589,2]
[405853816,1771362649726,-2900.0,0.000176,6]
[405853817,1771362649736,-1000.0,0.00017603,2]
[405853818,1771362649744,-1000.0,0.00017611,2]
[405853819,1771362649754,-181.08010149,0.0001763,2]
[405853820,1771362649763,-200.0,0.0001763,2]
[405853821,1771362649773,-771.01748645,0.0001763,2]
[405853822,1771362649783,-287.61899177,0.0001763,2]
[405853823,1771362649792,-168.0,0.0001763,2]
[405853824,1771362649801,-151.0,0.00017632,2]
[405853825,1771362649811,-997.16350561,0.00017632,2]
[405853826,1771362649822,-1121.2636171,0.0001764,2]
[405853827,1771362649831,-1030.3417179,0.0001764,2]
[405853828,1771362649840,-1019.44255753,0.0001764,2]
[405853829,1771362649849,-1031.44299201,0.0001764,2]
[405853830,1771362649858,-1091.40014798,0.0001764,2]
[405853831,1771362649868,-1088.59520121,0.0001764,2]
[405853832,1771362649878,-1067.92972644,0.0001764,2]
[405853833,1771362649887,-1094.08354308,0.0001764,2]
[405853834,1771362649897,-1105.12987812,0.0001764,2]
[405853835,1771362649907,-1072.07260782,0.0001764,2]
[405853836,1771362649917,-1050.70262559,0.0001764,2]
[405853837,1771362649927,-1028.51661658,0.0001764,2]
[405853838,1771362649936,-1136.4441643,0.0001764,2]
[405853839,1771362649945,-1079.26288089,0.0001764,2]
[405853840,1771362649955,-1107.55681217,0.0001764,2]
[405853841,1771362649964,-1120.59839781,0.0001764,2]
[405853842,1771362649974,-1030.56976767,0.0001764,2]
[405853843,1771362649983,-1030.21005179,0.0001764,2]
[405853844,1771362649994,-1031.23473348,0.0001764,2]
[405853845,1771362650003,-1104.9360047,0.0001764,2]
[405853846,1771362650013,-1009.69822223,0.0001764,2]
[405853847,1771362650023,-1387.13382558,0.0001764,2]
[405853848,1771362650033,-10846.14923654,0.0001764,2]
[405853849,1771362650042,-1226.14807661,0.00017644,2]
[405853850,1771362650052,-807.0,0.00017653,2]
[405853851,1771362650062,-807.0,0.00017658,2]
[405853852,1771362650073,-807.0,0.00017663,2]
[405853853,1771362650082,-1000.0,0.00017664,2]
[405853854,1771362650092,-151.0,0.00017687,2]
[405853855,1771362650102,-150.0,0.000177,2]
[405853856,1771362650112,-2900.0,0.000177,6]
[405853857,1771362650122,-500.0,0.00017726,7]
[405853858,1771362650131,-1226.14807661,0.00017726,2]
[405853859,1771362650140,-2004.41635969,0.0001773,2]
[405853860,1771362650151,-1000.0,0.00017733,2]
[405853861,1771362650161,-151.0,0.00017742,2]
[405853862,1771362650170,-1000.0,0.00017745,2]
[405853863,1771362650180,-166.11141928,0.0001775,2]
[405853864,1771362650189,-1000.0,0.00017754,2]
[405853865,1771362650199,-1000.0,0.00017755,2]
[405853866,1771362650208,-1000.0,0.00017756,2]
[405853867,1771362650217,-1000.0,0.00017767,2]
[405853868,1771362650227,-1000.0,0.00017771,2]
[405853869,1771362650236,-1000.0,0.00017774,2]
[405853870,1771362650246,-150.0,0.00017775,2]
[405853871,1771362650255,-807.0,0.00017775,2]
[405853872,1771362650265,-1226.14807661,0.00017781,2]
[405853873,1771362650274,-150.0,0.00017782,2]
[405853874,1771362650284,-350.0,0.00017785,3]
[405853875,1771362650293,-300.0,0.00017789,2]
[405853876,1771362650303,-151.0,0.00017797,2]
[405853877,1771362650313,-2900.0,0.000178,6]
[405853878,1771362650323,-150.0,0.00017807,2]
[405853879,1771362650333,-444.64,0.00017808,2]
[405853880,1771362650342,-1000.0,0.00017808,2]
[405853881,1771362650352,-800.0,0.00017808,2]
[405853882,1771362650362,-250.0,0.00017808,20]
[405853883,1771362650371,-250.0,0.00017808,20]
[405853884,1771362650381,-250.0,0.00017808,20]
[405853885,1771362650390,-250.0,0.00017808,20]
[405853886,1771362650400,-250.0,0.00017808,20]
[405853887,1771362650410,-250.0,0.00017808,20]
[405853888,1771362650421,-250.0,0.00017808,20]
[405853889,1771362650431,-250.0,0.00017808,20]
[405853890,1771362650442,-250.0,0.00017808,20]
[405853891,1771362650452,-250.0,0.00017808,20]
[405853892,1771362650462,-250.0,0.00017808,20]
[405853893,1771362650472,-250.0,0.00017808,20]
[405853894,1771362650482,-250.0,0.00017808,20]
[405853895,1771362650492,-250.0,0.00017808,20]
[405853896,1771362650503,-250.0,0.00017808,20]
[405853897,1771362650514,-250.0,0.00017808,20]
[405853898,1771362650524,-250.0,0.00017808,20]
[405853899,1771362650534,-1000.0,0.00017812,2]
[405853900,1771362650545,-1000.0,0.00017812,2]
[405853901,1771362650555,-1000.0,0.00017818,2]
[405853902,1771362650565,-1000.0,0.00017824,2]
[405853903,1771362650575,-255.42,0.00017832,2]
[405853904,1771362650585,-1000.0,0.00017833,2]
[405853905,1771362650595,-1000.0,0.00017844,2]
[405853906,1771362650605,-1000.0,0.00017844,2]
[405853907,1771362650615,-150.0,0.00017847,2]
[405853908,1771362650625,-168.0,0.00017851,2]
[405853909,1771362650635,-151.0,0.00017852,2]
[405853910,1771362650646,-150.0,0.00017852,2]
[405853911,1771362650655,-1000.0,0.00017853,2]
[405853912,1771362650665,-1000.0,0.00017854,2]
[405853913,1771362650676,-200.0,0.00017855,2]
[405853914,1771362650687,-200.0,0.00017856,2]
[405853915,1771362650696,-200.0,0.00017856,2]
[405853916,1771362650706,-1000.0,0.00017857,2]
[405853917,1771362650717,-1000.0,0.00017862,2]
[405853918,1771362650727,-1226.14807661,0.00017863,2]
[405853919,1771362650736,-150.0,0.00017869,2]
[405853920,1771362650746,-150.0,0.00017872,2]
[405853921,1771362650756,-1000.0,0.00017873,2]
[405853922,1771362650766,-1000.0,0.0001788,2]
[405853923,1771362650776,-1000.0,0.00017887,2]
[405853924,1771362650786,-150.0,0.00017899,2]
[405853925,1771362650795,-1546.47,0.00017899,2]
[405853926,1771362650806,-1546.47,0.00017899,2]
[405853927,1771362650815,-516.5,0.00017899,2]
[405853928,1771362650826,-516.5,0.00017899,2]
[405853929,1771362650836,-32850.4601,0.000179,2]
[405853930,1771362650845,-1000.0,0.000179,2]
[405853931,1771362650855,-1066.36814864,0.000179,2]
[405853932,1771362650864,-627.37822091,0.000179,2]
[405853933,1771362650874,-150.0,0.000179,2]
[405853934,1771362650884,-150.0,0.000179,2]
[405853935,1771362650895,-3092.0,0.000179,6]
[405853936,1771362650906,-182.28581927,0.000179,2]
[405853937,1771362650916,-150.0,0.000179,2]
[405853938,1771362650926,-11813.90255413,0.000179,2]
[405853939,1771362650938,-808.9038426,0.000179,2]
[405853940,1771362650948,-2638.19134804,0.000179,2]
[405853941,1771362650959,-1254.26998076,0.000179,2]
[405853942,1771362650969,-37474.45314742,0.000179,2]
[405853943,1771362650979,-1000.0,0.00017903,2]
[405853944,1771362650990,-1000.0,0.00017905,2]
[405853945,1771362651002,-150.0,0.00017908,2]
[405853946,1771362651011,-150.0,0.00017911,2]
[405853947,1771362651021,-1000.0,0.00017923,2]
[405853948,1771362651032,-1000.0,0.00017925,2]
[405853949,1771362651042,-6453.0,0.00017925,2]
[405853950,1771362651053,-1000.0,0.00017934,2]
[405853951,1771362651064,-150.0,0.00017947,2]
[405853952,1771362651074,-150.0,0.00017948,2]
[405853953,1771362651085,-1000.0,0.0001795,2]
[405853954,1771362651095,-1000.0,0.00017956,2]
[405853955,1771362651106,-1000.0,0.00017962,2]
[405853956,1771362651116,-393.71,0.00017974,2]
[405853957,1771362651126,-150.0,0.00017978,2]
[405853958,1771362651136,-150.0,0.00017979,2]
[405853959,1771362651146,-807.0,0.00017982,2]
[405853960,1771362651156,-1000.0,0.00017986,2]
[405853961,1771362651166,-1508.0,0.00017986,2]
[405853962,1771362651175,-153.0,0.00017986,2]
[405853963,1771362651185,-153.0,0.00017986,2]
[405853964,1771362651195,-1508.0,0.00017986,2]
[405853965,1771362651205,-153.0,0.00017986,2]
[405853966,1771362651216,-153.0,0.00017986,2]
[405853967,1771362651227,-152.0,0.00017986,2]
[405853968,1771362651237,-152.0,0.00017986,2]
[405853969,1771362651247,-1508.0,0.00017986,2]
[405853970,1771362651258,-153.0,0.00017986,2]
[405853971,1771362651267,-152.0,0.00017986,2]
[405853972,1771362651278,-153.0,0.00017986,2]
[405853973,1771362651288,-1508.0,0.00017986,2]
[405853974,1771362651298,-153.0,0.00017986,2]
[405853975,1771362651308,-153.0,0.00017986,2]
[405853976,1771362651318,-153.0,0.00017986,2]
[405853977,1771362651327,-153.0,0.00017986,2]
[405853978,1771362651338,-152.0,0.00017986,2]
[405853979,1771362651347,-1508.0,0.00017986,2]
[405853980,1771362651357,-153.0,0.00017986,2]
[405853981,1771362651368,-153.0,0.00017986,2]
[405853982,1771362651378,-153.0,0.00017986,2]
[405853983,1771362651388,-1508.0,0.00017986,2]
[405853984,1771362651399,-177.3058937,0.00017986,2]
[405853985,1771362651409,-1508.0,0.00017986,2]
[405853986,1771362651419,-1508.0,0.00017986,2]
[405853987,1771362651429,-1508.0,0.00017986,2]
[405853988,1771362651439,-1508.0,0.00017986,2]
[405853989,1771362651449,-1508.0,0.00017986,2]
[405853990,1771362651460,-152.0,0.00017986,2]
[405853991,1771362651470,-1508.0,0.00017986,2]
[405853992,1771362651480,-152.0,0.00017986,2]
[405853993,1771362651490,-152.0,0.00017986,2]
[405853994,1771362651500,-152.0,0.00017986,2]
[405853995,1771362651510,-153.0,0.00017986,2]
[405853996,1771362651520,-152.0,0.00017986,2]
[405853997,1771362651530,-153.0,0.00017986,2]
[405853998,1771362651540,-152.0,0.00017986,2]
[405853999,1771362651550,-153.0,0.00017986,2]
[405854000,1771362651560,-152.0,0.00017986,2]
[405854001,1771362651572,-158.65284712,0.00017986,2]
[405854002,1771362651582,-153.0,0.00017986,2]
[405854003,1771362651591,-152.0,0.00017986,2]
[405854004,1771362651601,-153.0,0.00017986,2]
[405854005,1771362651611,-152.0,0.00017986,2]
[405854006,1771362651621,-152.0,0.00017986,2]
[405854007,1771362651631,-152.0,0.00017986,2]
[405854008,1771362651641,-152.0,0.00017986,2]
[405854009,1771362651651,-152.0,0.00017986,2]
[405854010,1771362651660,-152.0,0.00017986,2]
[405854011,1771362651671,-152.0,0.00017986,2]
[405854012,1771362651687,-150.0,0.00017989,2]
[405854013,1771362651696,-999.999999,0.0001799,2]
[405854014,1771362651706,-150.0,0.00017991,2]
[405854015,1771362651716,-1000.0,0.00017992,2]
[405854016,1771362651726,-1000.0,0.00017997,2]
[405854017,1771362651736,-300.0,0.00017999,2]
[405854018,1771362651746,-300.0,0.00017999,2]
[405854019,1771362651756,-666.0,0.00017999,2]
[405854020,1771362651766,-300.0,0.00017999,2]
[405854021,1771362651776,-210.63759107,0.00017999,2]
[405854022,1771362651785,-300.0,0.00017999,2]
[405854023,1771362651795,-1546.47,0.00017999,2]
[405854024,1771362651805,-1546.47,0.00017999,2]
[405854025,1771362651815,-1546.47,0.00017999,2]
[405854026,1771362651825,-1546.47,0.00017999,2]
[405854027,1771362651835,-1546.51311819,0.00017999,2]
[405854028,1771362651845,-516.5,0.00017999,2]
[405854029,1771362651855,-516.5,0.00017999,2]
[405854030,1771362651865,-516.5,0.00017999,2]
[405854031,1771362651875,-516.5,0.00017999,2]
[405854032,1771362651886,-516.63,0.00017999,2]
[405854033,1771362651895,-300.0,0.00017999,2]
[405854034,1771362651906,-666.0,0.00017999,2]
[405854035,1771362651916,-243.22753519,0.00017999,2]
[405854036,1771362651926,-19884.37497237,0.00018,2]
[405854037,1771362651936,-150.0,0.00018,2]
[405854038,1771362651946,-1000.0,0.00018,2]
[405854039,1771362651956,-389.83552787,0.00018,2]
[405854040,1771362651966,-4625627.39282692,0.00018,2]
[405854041,1771362652870,-344.8526,0.00017808,20]
[405854042,1771362652880,-45385.44436086,0.00018,2]
[405854043,1771362652891,-3935.1740405,0.00018,2]
[405854044,1771362652904,-1160.0,0.00018,2]
[405854045,1771362653169,-1794.4884,0.00018,2]
[405854046,1771362653434,-370.45,0.00013698,2]
[405854047,1771362653490,-129.55,0.00013698,2]
[405854048,1771362653499,-500.0,0.00013698,2]
[405854049,1771362653508,-399.18033201,0.00013698,2]
[405854084,1771363832312,-212.0,7.327e-05,2]
[405854085,1771363832323,-187.39,7.327e-05,2]
[405854086,1771363832335,-1070.68670614,9.011e-05,2]
[405854087,1771363832347,-429.31329386,9.011e-05,2]
[405854088,1771363832358,-1145.90530121,9.456e-05,2]
[405854089,1771363832370,-1151.18960832,9.456e-05,2]
[405854090,1771363832383,-57.83509047,9.456e-05,2]
[405854091,1771363832393,-250.0,9.55e-05,2]
[405854092,1771363832404,-259.01,9.644e-05,2]
[405854093,1771363832415,-996.73151899,9.644e-05,2]
[405854094,1771363832425,-357.942275,9.659e-05,2]
[405854095,1771363832435,-250.0,9.682e-05,2]
[405854096,1771363832444,-1200.0,9.699e-05,2]
[405854098,1771363832455,-2700.0,9.7e-05,3]
[405854100,1771363832464,-353.49297464,9.732e-05,2]
[405854101,1771363832489,-685.83464149,9.732e-05,2]
[405854102,1771363832501,-500.0,9.732e-05,2]
[405854105,1771363832521,-440.67238387,9.732e-05,2]
[405854107,1771363832531,-343.87216175,9.752e-05,2]
[405854109,1771363832543,-287.06431718,9.752e-05,2]
[405854112,1771363832555,-1045.06352107,9.752e-05,2]
[405854114,1771363832564,-510.15918158,9.771e-05,2]
[405854117,1771363832586,-833.84081842,9.771e-05,2]
[405854119,1771363832598,-758.0,9.791e-05,2]
[405854121,1771363832608,-175.08,9.8e-05,2]
[405854123,1771363832617,-685.81311296,9.8e-05,3]
[405854124,1771363838339,-4814.18688704,9.8e-05,3]
[405854125,1771363838350,-1377.0,9.81e-05,2]
[405854126,1771363838361,-166.66,9.812e-05,2]
[405854127,1771363838371,-520.0,9.83e-05,2]
[405854128,1771363838382,-1852.42,9.839e-05,2]
[405854129,1771363838392,-150.0,9.849e-05,2]
[405854130,1771363838403,-1558.0,9.849e-05,2]
[405854131,1771363838413,-221.53561753,9.868e-05,2]
[405854132,1771363838426,-1416.40035,9.868e-05,2]
[405854133,1771363838439,-73.06403247,9.868e-05,2]
[405854134,1771363838450,-373.20583805,9.874e-05,2]
[405854135,1771363838492,-623.52568092,9.874e-05,2]
[405854136,1771363838502,-170.14081875,9.888e-05,2]
[405854137,1771363838521,-100.85918125,9.888e-05,2]
[405854138,1771363838531,-325.5589504,9.9e-05,3]
[405854139,1771363838543,-254.18043806,9.9e-05,3]
[405854140,1771363838572,-7720.26061154,9.9e-05,3]
[405854141,1771363838582,-1584.0,9.907e-05,2]
[405854142,1771363838592,-1393.0,9.927e-05,2]
[405854143,1771363838603,-150.0,9.948e-05,2]
[405854144,1771363838614,-1758.79423204,9.949e-05,2]
[405854145,1771363838624,-943.72114971,9.949e-05,2]
[405854146,1771363838634,-11813.90255414,9.949e-05,2]
[405854147,1771363838645,-836.17998718,9.949e-05,2]
[405854149,1771363838655,-11100.0,0.0001,3]
[405854150,1771363838666,-151.0,0.0001,2]
[405854151,1771363838677,-151.0,0.0001,2]
[405854152,1771363838687,-151.0,0.0001,2]
[405854153,1771363838697,-151.0,0.0001,2]
[405854154,1771363838707,-151.0,0.0001,2]
[405854155,1771363838717,-151.0,0.0001,2]
[405854156,1771363838727,-151.0,0.0001,2]
[405854157,1771363838738,-151.0,0.0001,2]
[405854158,1771363838748,-151.0,0.0001,2]
[405854159,1771363838758,-151.0,0.0001,2]
[405854160,1771363838768,-151.0,0.0001,2]
[405854161,1771363838778,-337.0,0.0001,2]
[405854162,1771363838788,-337.0,0.0001,2]
[405854163,1771363838798,-337.85061866,0.0001,2]
[405854164,1771363838808,-1454.86007664,0.0001,2]
[405854165,1771363838818,-996.73151897,0.00010003,2]
[405854166,1771363838828,-500.0,0.00010003,2]
[405854167,1771363838839,-206.98000549,0.00010003,2]
[405854168,1771363838849,-500.0,0.00010003,2]
[405854169,1771363838859,-500.0,0.00010003,2]
[405854170,1771363838869,-500.0,0.00010003,2]
[405854171,1771363838879,-500.0,0.00010003,2]
[405854172,1771363838890,-183.92024631,0.00010003,2]
[405854173,1771363838899,-321.97014831,0.00010003,2]
[405854174,1771363838909,-500.0,0.00010003,2]
[405854175,1771363838920,-500.0,0.00010003,2]
[405854176,1771363838935,-3500000.0,0.00010004,2]
[405854177,1771363838946,-383.0,0.00010049,2]
[405854178,1771363838956,-477.0,0.00010069,2]
[405854179,1771363838966,-500.0,0.00010069,2]
[405854180,1771363838976,-252.0,0.00010089,2]
[405854181,1771363838986,-1454.86007664,0.00010094,2]
[405854182,1771363838997,-23454.9,0.00010104,2]
[405854183,1771363839008,-999.99,0.00010104,2]
[405854184,1771363839018,-9999.99,0.00010104,2]
[405854185,1771363839029,-9999.99,0.00010104,2]
[405854186,1771363839039,-9999.99,0.00010104,2]
[405854187,1771363839050,-467.0,0.00010109,2]
[405854188,1771363839060,-583.69347785,0.00010123,2]
[405854189,1771363839070,-213.0,0.00010129,2]
[405854190,1771363839081,-166.66,0.00010136,2]
[405854191,1771363839091,-349.0,0.00010149,2]
[405854192,1771363839101,-5013.89,0.00010167,2]
[405854193,1771363839112,-484.171,0.00010167,2]
[405854194,1771363839122,-150.99,0.00010167,2]
[405854195,1771363839132,-1000.0,0.00010167,2]
[405854196,1771363839142,-9999.99,0.00010167,2]
[405854197,1771363839153,-9999.99,0.00010167,2]
[405854198,1771363839163,-150.99,0.00010167,2]
[405854199,1771363839174,-499.99,0.00010167,2]
[405854200,1771363839184,-13062.74,0.00010167,2]
[405854201,1771363839194,-299.99,0.00010167,2]
[405854202,1771363839205,-445.0,0.00010237,2]
[405854203,1771363839215,-166.0,0.00010258,2]
[405854204,1771363839225,-201.0,0.00010278,2]
[405854205,1771363839236,-898.32890406,0.00010292,2]
[405854206,1771363839246,-21155.78997856,0.00010296,2]
[405854207,1771363839256,-181.0,0.00010299,2]
[405854208,1771363839267,-4739.43815662,0.000103,2]
[405854209,1771363839282,-154.0,0.00010319,2]
[405854210,1771363839294,-500.0,0.00010326,3]
[405854211,1771363839304,-500.0,0.00010326,3]
[405854212,1771363839315,-500.0,0.00010326,3]
[405854213,1771363839325,-150.0,0.00010326,3]
[405854214,1771363839336,-554.0,0.00010326,3]
[405854215,1771363839346,-150.0,0.00010326,3]
[405854216,1771363839357,-500.0,0.00010326,3]
[405854217,1771363839368,-423.0,0.0001034,2]
[405854218,1771363839378,-500.0,0.00010343,2]
[405854219,1771363839388,-322.0,0.0001036,2]
[405854220,1771363839399,-366.0,0.0001038,2]
[405854221,1771363839409,-500.0,0.00010381,3]
[405854222,1771363839419,-500.0,0.00010381,3]
[405854223,1771363839430,-500.0,0.00010381,3]
[405854224,1771363839440,-150.0,0.00010381,3]
[405854225,1771363839450,-554.0,0.00010381,3]
[405854226,1771363839461,-201.09695119,0.00010381,3]
[405854227,1771363839471,-500.0,0.00010381,3]
[405854228,1771363839482,-6737.6189,0.000104,2]
[405854229,1771363839492,-2032.5562,0.000104,2]
[405854230,1771363839502,-38875.7493,0.000104,2]
[405854231,1771363839513,-410.0,0.00010401,2]
[405854232,1771363839523,-250.0,0.00010401,2]
[405854233,1771363839534,-250.0,0.00010401,2]
[405854234,1771363839544,-500.0,0.00010426,3]
[405854235,1771363839554,-500.0,0.00010436,3]
[405854236,1771363839564,-500.0,0.00010436,3]
[405854237,1771363839574,-500.0,0.00010436,3]
[405854238,1771363839584,-150.0,0.00010436,3]
[405854239,1771363839594,-554.0,0.00010436,3]
[405854240,1771363839603,-500.0,0.00010436,3]
[405854241,1771363839613,-166.66,0.0001046,2]
[405854242,1771363839623,-500.0,0.00010481,3]
[405854243,1771363839638,-500.0,0.0001049,3]
[405854244,1771363839649,-500.0,0.0001049,3]
[405854245,1771363839659,-500.0,0.0001049,3]
[405854246,1771363839670,-166.5683879,0.0001049,3]
[405854247,1771363839680,-554.0,0.0001049,3]
[405854248,1771363839691,-500.0,0.0001049,3]
[405854249,1771363839701,-12009.64721298,0.000105,2]
[405854250,1771363839711,-2500.0,0.000105,2]
[405854251,1771363839721,-1066.36814865,0.0001052,2]
[405854252,1771363839731,-500.0,0.00010536,3]
[405854253,1771363839742,-500.0,0.00010545,3]
[405854254,1771363839752,-500.0,0.00010545,3]
[405854255,1771363839762,-500.0,0.00010545,3]
[405854256,1771363839772,-554.0,0.00010545,3]
[405854257,1771363839782,-500.33776257,0.00010545,3]
[405854258,1771363839792,-464.38268717,0.0001059,3]
[405854259,1771363839802,-200.0,0.00010594,2]
[405854260,1771363839812,-500.0,0.00010594,2]
[405854261,1771363839822,-164.43370107,0.00010594,2]
[405854262,1771363839836,-151.0,0.00010594,2]
[405854263,1771363839845,-500.0,0.00010594,2]
[405854264,1771363839855,-151.0,0.00010594,2]
[405854265,1771363839865,-500.0,0.00010594,2]
[405854266,1771363839876,-151.0,0.00010594,2]
[405854267,1771363839886,-500.0,0.00010594,2]
[405854268,1771363839896,-151.0,0.00010594,2]
[405854269,1771363839906,-151.0,0.00010594,2]
[405854270,1771363839916,-151.0,0.00010594,2]
[405854271,1771363839927,-151.0,0.00010594,2]
[405854272,1771363839936,-500.0,0.00010594,2]
[405854273,1771363839946,-500.0,0.00010594,2]
[405854274,1771363839956,-500.0,0.00010594,2]
[405854275,1771363839967,-500.0,0.00010594,2]
[405854276,1771363839977,-500.0,0.00010594,2]
[405854277,1771363839986,-500.0,0.00010594,2]
[405854278,1771363839997,-500.0,0.00010594,2]
[405854279,1771363840007,-500.0,0.00010594,2]
[405854280,1771363840021,-151.0,0.00010594,2]
[405854281,1771363840031,-151.0,0.00010594,2]
[405854282,1771363840041,-151.0,0.00010594,2]
[405854283,1771363840051,-151.0,0.00010594,2]
[405854284,1771363840061,-151.0,0.00010594,2]
[405854285,1771363840072,-200.0,0.00010594,2]
[405854286,1771363840083,-151.0,0.00010594,2]
[405854287,1771363840093,-151.0,0.00010594,2]
[405854288,1771363840103,-151.0,0.00010594,2]
[405854289,1771363840113,-151.0,0.00010594,2]
[405854290,1771363840123,-151.0,0.00010594,2]
[405854291,1771363840134,-151.0,0.00010594,2]
[405854292,1771363840144,-151.0,0.00010594,2]
[405854293,1771363840154,-151.0,0.00010594,2]
[405854294,1771363840164,-151.0,0.00010594,2]
[405854295,1771363840175,-151.0,0.00010594,2]
[405854296,1771363840186,-151.0,0.00010594,2]
[405854297,1771363840196,-151.0,0.00010594,2]
[405854298,1771363840207,-151.0,0.00010594,2]
[405854299,1771363840217,-151.0,0.00010594,2]
[405854300,1771363840233,-151.0,0.00010594,2]
[405854301,1771363840243,-500.0,0.00010594,2]
[405854302,1771363840255,-500.0,0.00010594,2]
[405854303,1771363840265,-500.0,0.00010594,2]
[405854304,1771363840276,-500.0,0.00010594,2]
[405854305,1771363840286,-500.0,0.00010594,2]
[405854306,1771363840300,-500.0,0.00010594,2]
[405854307,1771363840310,-500.0,0.00010594,2]
[405854308,1771363840320,-500.0,0.00010594,2]
[405854309,1771363840331,-500.0,0.00010594,2]
[405854310,1771363840342,-500.0,0.00010594,2]
[405854311,1771363840352,-500.0,0.00010594,2]
[405854312,1771363840364,-500.0,0.000106,3]
[405854313,1771363840374,-500.0,0.000106,3]
[405854314,1771363840384,-500.0,0.000106,3]
[405854315,1771363840395,-554.0,0.000106,3]
[405854316,1771363840404,-500.0,0.00010617,2]
[405854317,1771363840415,-500.0,0.00010655,3]
[405854318,1771363840425,-500.0,0.00010655,3]
[405854319,1771363840435,-500.0,0.00010655,3]
[405854320,1771363840445,-554.0,0.00010655,3]
[405854321,1771363840456,-150.0,0.00010659,2]
[405854322,1771363840466,-178.36591542,0.00010659,2]
[405854323,1771363840476,-500.0,0.00010659,2]
[405854324,1771363840486,-500.0,0.00010659,2]
[405854325,1771363840496,-500.0,0.00010659,2]
[405854326,1771363840506,-150.0,0.00010659,2]
[405854327,1771363840516,-150.0,0.00010659,2]
[405854328,1771363840526,-150.0,0.00010659,2]
[405854329,1771363840536,-500.0,0.00010659,2]
[405854330,1771363840546,-500.0,0.00010659,2]
[405854331,1771363840557,-500.0,0.00010659,2]
[405854332,1771363840567,-200.24181775,0.00010659,2]
[405854333,1771363840577,-1680.0,0.00010669,2]
[405854334,1771363840587,-1200.0,0.00010699,2]
[405854335,1771363840598,-247.14,0.000107,2]
[405854336,1771363840608,-28173.12,0.00010708,2]
[405854337,1771363840618,-500.0,0.0001071,3]
[405854338,1771363840628,-500.0,0.0001071,3]
[405854339,1771363840639,-500.0,0.0001071,3]
[405854340,1771363840649,-554.0,0.0001071,3]
[405854341,1771363840658,-150.0,0.00010714,2]
[405854342,1771363840669,-500.0,0.00010714,2]
[405854343,1771363840679,-500.0,0.00010714,2]
[405854344,1771363840689,-500.0,0.00010714,2]
[405854345,1771363840700,-150.0,0.00010714,2]
[405854346,1771363840710,-500.0,0.00010714,2]
[405854347,1771363840720,-500.0,0.00010714,2]
[405854348,1771363840730,-500.0,0.00010714,2]
[405854349,1771363840740,-184.6,0.00010728,2]
[405854350,1771363840750,-284.61,0.00010728,2]
[405854351,1771363840760,-150.0,0.00010759,2]
[405854352,1771363840770,-500.0,0.00010759,2]
[405854353,1771363840780,-500.0,0.00010764,3]
[405854354,1771363840790,-500.0,0.00010764,3]